[Event "FIDE Womens Candidates 2024"]
[Site "Toronto"]
[Date "2024.04.15"]
[Round "10.1"]
[White "Tan, Zhongyi"]
[Black "Koneru, Humpy"]
[Result "1/2-1/2"]
[ECO "C45"]
[WhiteElo "2521"]
[BlackElo "2546"]
[Annotator "TA"]
[PlyCount "144"]
[EventDate "2024.04.02"]
[EventType "tourn"]
[EventCountry "CAN"]
[SourceTitle "playchess.com"]
[Source "ChessBase"]
[SourceQuality "1"]
[TimeControl "40/5400+30:1800+30"]

{[%evp 66,144,-9,-10,-15,-11,0,0,0,-9,0,0,0,0,0,0,0,0,-2,-8,-8,-8,-8,-8,0,0,0,-8,-8,-8,0,-8,-8,-8,-8,-8,-8,-8,-8,-8,-8,-8,-8,-8,-8,-8,-8,-8,-8,-279,-279,-343,-8,-8,-8,-8,-8,-8,-8,-8,-8,-8,-8,-8,-8,-8,0,0,0,0,0,0,0,0,0,0,0,0,0,0,0]} 1. e4 {[%emt 0:00:04]} e5 {[%emt 0:00:19]} 2. Nf3 {[%emt 0:00:07]} Nc6 {[%emt 0:00:15]} 3. d4 {[%emt 0:00:09]} exd4 {[%emt 0:00:20]} 4. Nxd4 {[%emt 0:00:06]} Bc5 {[%emt 0:00:24]} 5. Nb3 {[%emt 0:00:11]} Bb6 {[%emt 0:00:23]} 6. Nc3 {[%emt 0:00:12]} Qf6 {[%emt 0:01:33]} 7. Qe2 {[%emt 0:06:19]} Nge7 {[%emt 0:02:00]} 8. Be3 {[%emt 0:00:17]} d6 {[%emt 0:01:40] C45: Scotch Game.} 9. O-O-O {[%emt 0:00:46]} Bd7 {[%emt 0:02:28] now supersedes 9...Be6.} 10. Qd2 $146 {[%emt 0:05:49]} ({Predecessor:} 10. g3 h5 11. Bg2 h4 12. f4 O-O-O 13. Bxb6 axb6 14. Kb1 Qg6 15. Qf2 f5 16. Rde1 fxe4 17. Bxe4 {1-0 Mchedlishvili,M (2587)-Erdos,V (2615) Abu Dhabi op Blitz 27th 2021 (5)}) 10... O-O-O {[%emt 0:13:07]} 11. Nd5 {[%emt 0:15:47]} Bxe3 {[%emt 0:04:15]} 12. Qxe3 {[%emt 0:00:34]} Qe5 {[%emt 0:00:27]} 13. Bc4 {[%emt 0:05:08]} Rhe8 {[%emt 0:11:08]} 14. f4 {[%emt 0:07:30]} Qh5 {[%emt 0:01:23]} 15. h3 {[%emt 0:08:47]} f5 {[%emt 0:04:54]} 16. e5 {[%emt 0:03:33]} Nxd5 {[%emt 0:08:33]} 17. Bxd5 {[%emt 0:00:33]} Qh6 {[%emt 0:00:17]} 18. Kb1 {[%emt 0:16:49]} Rxe5 {[%emt 0:04:17]} 19. Qf3 {[%emt 0:00:21]} Re7 {[%emt 0:04:05]} 20. Nd4 {[%emt 0:00:13]} Rde8 {[%emt 0:02:19]} 21. Nxc6 {[%emt 0:02:39]} bxc6 {[%emt 0:02:46]} 22. Bxc6 {[%emt 0:00:06]} Bxc6 {[%emt 0:01:25]} 23. Qxc6 {[%emt 0:00:05]} Qxf4 {[%emt 0:00:19]} 24. Qa6+ {[%emt 0:00:15]} Kd8 {[%emt 0:07:19]} 25. Qxa7 {[%emt 0:00:45]} Re2 {[%emt 0:08:26]} 26. Qb8+ {[%emt 0:00:51]} Kd7 {[%emt 0:00:07]} 27. Qb5+ {[%emt 0:00:04]} Kc8 {[%emt 0:01:38]} 28. Qa6+ {[%emt 0:10:44]} Kd8 {[%emt 0:00:34]} 29. Qa5 {[%emt 0:00:11]} R8e4 {[%emt 0:09:15]} 30. g4 {[%emt 0:04:40]} Qe5 {[%emt 0:04:32]} 31. Qa8+ {[%emt 0:00:36]} Kd7 {[%emt 0:00:02]} 32. gxf5 {[%emt 0:00:53]} Rc4 {[%emt 0:01:26]} 33. Qd5 {[%emt 0:07:11]} Qxd5 {[%emt 0:01:02]} (33... Rcxc2 $2 $18 {loses.}) 34. Rxd5 {[%emt 0:00:04]} Rcxc2 {[%emt 0:02:36]} 35. Rb5 {[%emt 0:00:03]} Rg2 {[%emt 0:00:38]} 36. a4 {[%emt 0:01:36]} Rc4 {[%emt 0:01:28]} 37. a5 {[%emt 0:00:58]} Kc6 {[%emt 0:00:43]} 38. Rb8 {[%emt 0:00:22]} Ra4 {[%emt 0:00:33]} 39. Rc1+ {[%emt 0:00:09]} Kd5 {[%emt 0:00:10]} 40. Rxc7 {[%emt 0:00:00]} Rxa5 {[%emt 0:00:00]} 41. Rg8 {[%emt 0:14:01]} Rb5 {[%emt 0:02:26]} 42. Rc2 {[%emt 0:02:21]} Rxc2 {[%emt 0:04:16]} 43. Kxc2 {[%emt 0:00:28]} Rb7 {[%emt 0:00:02]} 44. Kc3 {[%emt 0:02:12]} Ke5 {[%emt 0:01:49]} 45. b4 {[%emt 0:03:26]} d5 {[%emt 0:14:05]} 46. Rd8 {[%emt 0:00:09]} Ke4 {[%emt 0:05:10]} 47. Rd6 {[%emt 0:06:12]} Rc7+ {[%emt 0:00:20]} 48. Kd2 {[%emt 0:01:43]} Ke5 {[%emt 0:01:15]} 49. Rb6 {[%emt 0:01:44]} Kxf5 {[%emt 0:00:27]} 50. Kd3 {[%emt 0:00:04]} Ke5 {[%emt 0:00:29]} 51. Rb8 {[%emt 0:00:05]} Rc4 {[%emt 0:02:00]} 52. b5 {[%emt 0:00:26]} Kd6 {[%emt 0:03:45]} 53. Rb7 {[%emt 0:04:37]} Rh4 {[%emt 0:00:21]} 54. Rxg7 {[%emt 0:00:03]} Rxh3+ {[%emt 0:00:08]} 55. Kd4 {[%emt 0:00:05]} Rh4+ {[%emt 0:00:09]} 56. Kc3 {[%emt 0:00:36]} Kc5 {[%emt 0:00:42]} 57. Rb7 $2 {[%emt 0:00:05][%mdl 8192]} (57. Rg5 $11) 57... h5 $19 {[%emt 0:01:45]} 58. b6 {[%emt 0:00:06]} Kc6 $2 {[%emt 0:00:13]} (58... Rh1 $19 {...h4 would now be deadly.} 59. Rd7 Kxb6 60. Rxd5 h4) 59. Rb8 $11 {[%emt 0:00:06]} Rc4+ {[%emt 0:00:25]} 60. Kd3 {[%emt 0:00:43]} (60. Kd2 {simplifies} Rg4 61. Rh8 Kxb6 62. Rxh5 Kc5 63. Rh3) 60... Rb4 {[%emt 0:00:23]} 61. Rh8 {[%emt 0:01:16]} (61. Kc3 {simplifies} Rxb6 62. Rh8 Kc5 63. Rxh5 Rg6 64. Kd3) 61... h4 {[%emt 0:00:35]} (61... Rxb6 {simplifies} 62. Rxh5 Kc5 63. Rh1 Rb3+) 62. Rh6+ {[%emt 0:00:05]} (62. Rh5 {simplifies} Kc5 63. Rh6 Rxb6 64. Rxh4 Ra6 65. Kd2) 62... Kc5 {[%emt 0:00:24]} 63. b7 {[%emt 0:00:23]} (63. Kc2 {simplifies} Rxb6 64. Rxh4 Rb7 65. Rh3) 63... Rb3+ {[%emt 0:00:18]} (63... Rxb7 {simplifies} 64. Rxh4 Rg7 65. Rh8 Rg3+) 64. Kc2 {[%emt 0:00:07]} Rxb7 {[%emt 0:00:13]} 65. Rxh4 {[%emt 0:00:04]} d4 {[%emt 0:00:11]} 66. Rh8 {[%emt 0:00:10]} Re7 {[%emt 0:00:38]} 67. Kd3 {[%emt 0:00:13]} Re3+ {[%emt 0:00:15]} 68. Kd2 {[%emt 0:00:03]} Rg3 {[%emt 0:00:18]} 69. Rc8+ {[%emt 0:00:06]} Kd5 {[%emt 0:00:04]} 70. Rd8+ {[%emt 0:00:04]} Kc4 {[%emt 0:00:12]} 71. Rc8+ {[%emt 0:00:03]} Kd5 {[%emt 0:00:06]} 72. Rd8+ {[%emt 0:00:03]} Kc4 {[%emt 0:00:04]} 1/2-1/2

[Event "FIDE Womens Candidates 2024"]
[Site "Toronto"]
[Date "2024.04.15"]
[Round "10.2"]
[White "Lagno, Kateryna"]
[Black "Muzychuk, Anna"]
[Result "1/2-1/2"]
[ECO "C83"]
[WhiteElo "2542"]
[BlackElo "2520"]
[Annotator "TA"]
[PlyCount "119"]
[EventDate "2024.04.02"]
[EventType "tourn"]
[EventCountry "CAN"]
[SourceTitle "playchess.com"]
[Source "ChessBase"]
[SourceQuality "1"]
[TimeControl "40/5400+30:1800+30"]

{[%evp 18,119,42,14,13,11,14,-7,-7,0,-8,-5,-10,-9,20,14,27,14,10,14,13,14,12,11,8,22,18,27,11,0,0,0,0,0,0,0,0,0,0,0,0,0,0,0,0,0,0,-6,0,-8,-8,-8,-8,-8,-8,-8,-8,-8,-8,-8,-8,-8,-8,-8,-8,-8,-8,-8,-8,-8,-8,-8,-8,-8,-8,-8,-8,-8,-8,-8,-8,-8,-8,-8,-8,-8,-8,-8,-8,-8,-8,-8,-8,-8,0,-8,0,-8,-8,-8,-8,-8,-8,-8]} 1. e4 {[%emt 0:00:03]} e5 {[%emt 0:00:05]} 2. Nf3 {[%emt 0:00:07]} Nc6 {[%emt 0:00:04]} 3. Bb5 {[%emt 0:00:22][%cal Bf1b5,Bb5a4,Ba4b3][%mdl 32]} a6 {[%emt 0:00:05]} 4. Ba4 {[%emt 0:00:09]} Nf6 {[%emt 0:00:04]} 5. O-O {[%emt 0:00:24]} Nxe4 {[%emt 0:00:14]} 6. d4 {[%emt 0:02:03]} b5 {[%emt 0:00:07]} 7. Bb3 {[%emt 0:00:34]} d5 {[%emt 0:00:07]} 8. dxe5 {[%emt 0:00:44]} Be6 {[%emt 0:00:06]} 9. c3 {[%emt 0:01:35]} Be7 {[%emt 0:00:29]} 10. Bc2 {[%emt 0:00:53]} Bg4 {[%emt 0:01:02]} 11. a4 {[%emt 0:00:28] [#] Threatens to win with axb5.} b4 {[%emt 0:00:35]} 12. h3 {[%emt 0:01:05]} Bh5 {[%emt 0:06:58]} 13. Bb3 {[%emt 0:06:37]} Nxe5 {[%emt 0:03:02]} 14. Bxd5 {[%emt 0:02:10]} Bxf3 {[%emt 0:02:38]} 15. gxf3 {[%emt 0:00:29]} Nc5 {[%emt 0:07:25][%cal Oc5d3]} (15... Nxf3+ $5 16. Kg2 (16. Kh1 Qd6 $11) 16... Nh4+ 17. Kh1 Nf6 $11) 16. f4 {[%emt 0:07:04]} c6 $1 {[%emt 0:00:37]} 17. Bg2 {[%emt 0:02:05]} Qxd1 {[%emt 0:01:09]} 18. Rxd1 {[%emt 0:00:09]} Rd8 $1 {[%emt 0:00:27]} 19. Rxd8+ {[%emt 0:05:18]} Kxd8 {[%emt 0:00:01]} 20. cxb4 {[%emt 0:33:54]} ({Much weaker is} 20. fxe5 Nb3 21. Bxc6 Nxa1 $15) 20... Nb3 {[%emt 0:00:16][%csl LRa1,LRb4,LRc1] [#] ...Nd3 is the strong threat.} 21. Ra3 {[%emt 0:00:04]} Nxc1 {[%emt 0:00:13]} 22. fxe5 {[%emt 0:00:05][%cal Oa3f3]} Bxb4 {[%emt 0:00:22]} 23. Re3 {[%emt 0:02:06][%cal Oe3e4] The position is equal.} Ke7 {[%emt 0:22:53]} 24. Bxc6 {[%emt 0:06:43]} Rd8 {[%emt 0:12:47]} 25. Nc3 {[%emt 0:03:45]} Bxc3 {[%emt 0:02:53]} 26. bxc3 {[%emt 0:00:06]} Rd3 {[%emt 0:03:16]} 27. Rxd3 {[%emt 0:04:51]} Nxd3 $11 {[%emt 0:00:03][%mdl 4096] Endgame. KB-KN} 28. a5 {[%emt 0:00:20]} Nxe5 {[%emt 0:04:00]} 29. Bb7 {[%emt 0:00:05]} Nc4 {[%emt 0:00:06]} 30. Bxa6 {[%emt 0:00:14]} Nxa5 {[%emt 0:00:03]} 31. Kf1 {[%emt 0:00:33]} Kd6 {[%emt 0:00:42]} 32. Bd3 {[%emt 0:02:39]} h6 {[%emt 0:00:34]} 33. Ke2 {[%emt 0:01:29]} Ke5 {[%emt 0:00:13]} 34. Ke3 {[%emt 0:00:57]} g5 {[%emt 0:00:10]} 35. Bb5 {[%emt 0:00:29]} f5 {[%emt 0:01:25]} 36. Be2 {[%emt 0:02:17]} Nb3 {[%emt 0:00:39]} 37. Bc4 {[%emt 0:04:00]} Nc5 {[%emt 0:01:14]} 38. Bf7 {[%emt 0:01:11]} Ne4 {[%emt 0:00:42]} 39. c4 {[%emt 0:00:16]} Nc5 {[%emt 0:00:08]} 40. Kf3 $1 {[%emt 0:00:00]} Nd3 {[%emt 0:00:00]} 41. Ke3 {[%emt 0:16:14]} Nf4 {[%emt 0:04:43]} 42. c5 {[%emt 0:01:46]} Nxh3 {[%emt 0:00:34] White must now prevent ...Nf4.} 43. c6 $1 {[%emt 0:02:23] c7 would kill now.} Kd6 {[%emt 0:00:08][%cal Oh3f4] And now ...Nf4! would win.} 44. Bg6 {[%emt 0:09:12]} Kxc6 {[%emt 0:01:48]} 45. Bxf5 {[%emt 0:00:07]} Nf4 {[%emt 0:00:04]} 46. Ke4 {[%emt 0:00:51]} Kd6 {[%emt 0:00:11]} 47. Bc8 {[%emt 0:02:05]} Ke7 {[%emt 0:01:41]} 48. Kf5 {[%emt 0:00:14]} Kf7 {[%emt 0:00:08]} 49. Bb7 {[%emt 0:00:24]} Kg7 {[%emt 0:02:00]} 50. Ba6 {[%emt 0:00:51]} Nh3 {[%emt 0:01:40]} 51. f3 {[%emt 0:00:04]} Nf4 {[%emt 0:00:05]} 52. Bc4 {[%emt 0:00:43]} Ng2 {[%emt 0:00:56] ( -> ...Ne3+)} 53. Bb5 {[%emt 0:00:18]} Nh4+ {[%emt 0:01:00]} 54. Kg4 {[%emt 0:00:30]} Ng6 {[%emt 0:00:19]} 55. Kf5 $1 {[%emt 0:00:18]} Nh4+ {[%emt 0:02:36]} 56. Kg4 {[%emt 0:00:23]} Ng2 {[%emt 0:00:02]} 57. Kf5 {[%emt 0:00:40]} Ne3+ {[%emt 0:00:07]} 58. Ke4 {[%emt 0:01:19]} Nc2 {[%emt 0:00:09]} 59. Be8 {[%emt 0:01:50]} Kf6 {[%emt 0:01:48]} 60. Bh5 {[%emt 0:00:12] An even fight not without its subleties.   Weighted Error Value: White=0.02 (flawless) /Black=0.01 (flawless) .  Inaccurate:     	---       	Black=1      OK:         	White=29    	Black=23     Best:        	White=6     	Black=2      Strong:       	White=3     	Black=2} 1/2-1/2

[Event "FIDE Womens Candidates 2024"]
[Site "Toronto"]
[Date "2024.04.15"]
[Round "10.3"]
[White "Goryachkina, Aleksandra"]
[Black "Lei, Tingjie"]
[Result "0-1"]
[ECO "D14"]
[WhiteElo "2553"]
[BlackElo "2550"]
[Annotator "RC"]
[PlyCount "130"]
[EventDate "2024.04.02"]
[EventType "tourn"]
[EventCountry "CAN"]
[SourceTitle "playchess.com"]
[Source "ChessBase"]
[SourceQuality "1"]
[TimeControl "40/5400+30:1800+30"]

1. d4 {[%emt 0:00:09]} Nf6 {[%emt 0:00:14]} 2. c4 {[%emt 0:00:13]} c6 {[%emt 0:00:06]} 3. Nc3 {[%emt 0:05:07]} d5 {[%emt 0:00:06]} 4. cxd5 {[%emt 0:05:13]} cxd5 {[%emt 0:00:06]} 5. Bf4 {[%emt 0:00:13]} Nc6 {[%emt 0:00:08]} 6. e3 {[%emt 0:00:19]} Bf5 {[%emt 0:00:08]} 7. Bb5 {[%emt 0:03:03]} e6 {[%emt 0:04:19]} 8. Nf3 {[%emt 0:02:51]} Nd7 {[%emt 0:00:10]} 9. O-O {[%emt 0:02:20]} Rc8 {[%emt 0:03:04]} 10. Ne5 {[%emt 0:06:01]} Ndxe5 {[%emt 0:08:09]} 11. Bxe5 {[%emt 0:02:25]} a6 {[%emt 0:00:25]} 12. Bxc6+ {[%emt 0:01:51]} Rxc6 {[%emt 0:00:05]} 13. Rc1 {[%emt 0:00:34]} f6 {[%emt 0:08:41]} 14. Bg3 {[%emt 0:00:45]} Be7 {[%emt 0:02:48]} 15. Na4 {[%emt 0:03:08]} Rxc1 {[%emt 0:05:01]} 16. Qxc1 {[%emt 0:00:07]} Kf7 {[%emt 0:00:12]} 17. Qc3 {[%emt 0:06:26]} h5 {[%emt 0:03:44]} 18. h3 {[%emt 0:04:42]} h4 {[%emt 0:05:14]} 19. Bh2 {[%emt 0:01:10]} Qd7 {[%emt 0:17:14]} 20. Nb6 {[%emt 0:09:38]} Qb5 {[%emt 0:00:14]} 21. Qc7 {[%emt 0:03:00]} Qxb2 {[%emt 0:11:31]} 22. Bd6 {[%emt 0:14:57]} Re8 {[%emt 0:00:09]} 23. Rc1 {[%emt 0:02:49]} Kg6 {[%emt 0:05:01]} 24. Bxe7 {[%emt 0:04:10]} Rxe7 {[%emt 0:00:05]} 25. Qc5 {[%emt 0:04:57]} Kh6 {[%emt 0:09:56]} 26. a4 {[%emt 0:02:37]} a5 {[%emt 0:02:34]} 27. Nc8 {[%emt 0:03:38]} Rd7 {[%emt 0:00:55]} 28. Qc3 {[%emt 0:05:57]} Qb4 {[%emt 0:02:55]} 29. Qc5 {[%emt 0:01:29]} Kh7 {[%emt 0:01:27]} 30. Qa7 {[%emt 0:01:22]} Qd2 {[%emt 0:04:30]} 31. Qc5 {[%emt 0:00:18]} Bd3 {[%emt 0:02:00]} 32. Nb6 {[%emt 0:02:16]} Rd6 {[%emt 0:01:00]} 33. Qxd6 {[%emt 0:00:25]} Qxc1+ {[%emt 0:00:05]} 34. Kh2 {[%emt 0:00:03]} Bf5 {[%emt 0:03:19]} 35. Nd7 {[%emt 0:00:54]} Qc2 {[%emt 0:01:10]} 36. Nf8+ {[%emt 0:02:10]} Kh6 {[%emt 0:00:52]} 37. f3 {[%emt 0:00:50]} Qf2 {[%emt 0:00:34]} 38. Qf4+ {[%emt 0:00:24]} g5 {[%emt 0:00:04]} 39. Qc7 {[%emt 0:00:20]} Qg3+ {[%emt 0:00:19]} 40. Qxg3 {[%emt 0:00:00]} hxg3+ {[%emt 0:00:00]} 41. Kxg3 {[%emt 0:00:56]} e5 {[%emt 0:23:39]} 42. e4 {[%emt 0:00:36]} dxe4 {[%emt 0:00:43]} 43. fxe4 {[%emt 0:00:50]} Bc8 {[%emt 0:04:26]} 44. d5 {[%emt 0:01:06]} Kg7 {[%emt 0:00:04]} 45. Ne6+ {[%emt 0:00:07]} Kf7 {[%emt 0:00:02]} 46. Kf2 {[%emt 0:11:22]} b6 {[%emt 0:00:47]} 47. g3 {[%emt 0:05:43]} Bd7 {[%emt 0:00:04]} 48. h4 {[%emt 0:00:22]} gxh4 {[%emt 0:00:05]} 49. gxh4 {[%emt 0:00:04]} Bxa4 {[%emt 0:00:03]} 50. h5 {[%emt 0:00:52]} Bb5 {[%emt 0:04:24]} 51. Ke3 {[%emt 0:08:06]} a4 {[%emt 0:00:04]} 52. h6 {[%emt 0:01:21]} Kg6 {[%emt 0:00:14]} 53. Kd2 {[%emt 0:00:26]} Kxh6 {[%emt 0:00:39]} 54. d6 {[%emt 0:00:21]} Kh5 {[%emt 0:02:58]} 55. Nf8 {[%emt 0:01:15]} Kg5 {[%emt 0:00:14]} 56. d7 {[%emt 0:01:16]} Bxd7 {[%emt 0:00:04]} 57. Nxd7 {[%emt 0:00:04]} a3 {[%emt 0:00:47]} 58. Kc2 {[%emt 0:01:07]} b5 {[%emt 0:00:04]} 59. Kb3 {[%emt 0:03:04]} b4 {[%emt 0:00:04]} 60. Ka2 {[%emt 0:01:26]} f5 {[%emt 0:01:27]} 61. Nxe5 {[%emt 0:00:08]} Kf4 {[%emt 0:00:35]} 62. Nd3+ {[%emt 0:01:13]} Kxe4 {[%emt 0:00:03]} 63. Nxb4 {[%emt 0:00:46]} f4 {[%emt 0:00:04]} 64. Na6 {[%emt 0:00:35]} f3 {[%emt 0:01:18]} 65. Nc5+ {[%emt 0:00:21]} Ke3 {[%emt 0:00:05]} 0-1

[Event "FIDE Womens Candidates 2024"]
[Site "Toronto"]
[Date "2024.04.17"]
[Round "11.2"]
[White "Tan, Zhongyi"]
[Black "Lagno, Kateryna"]
[Result "1-0"]
[ECO "E06"]
[WhiteElo "2521"]
[BlackElo "2542"]
[Annotator "TA"]
[PlyCount "93"]
[EventDate "2024.04.02"]
[EventType "tourn"]
[EventCountry "CAN"]
[SourceTitle "playchess.com"]
[Source "ChessBase"]
[SourceQuality "1"]
[TimeControl "40/5400+30:1800+30"]

{[%evp 46,93,8,2,1,0,47,-11,-15,-163,0,0,291,298,297,297,533,285,277,279,303,303,331,331,320,306,279,164,299,250,389,376,376,348,5385,331,608,485,29991,29992,29993,29994,29994,29992,29995,29996,29996,29995,29997,29998]} 1. Nf3 {[%emt 0:00:04]} d5 {[%emt 0:00:51]} 2. g3 {[%emt 0:00:06]} Nf6 {[%emt 0:00:25]} 3. Bg2 {[%emt 0:00:08]} e6 {[%emt 0:00:11]} 4. O-O {[%emt 0:00:12]} Be7 {[%emt 0:00:10]} 5. d4 {[%emt 0:04:10]} O-O {[%emt 0:00:18]} 6. Nbd2 {[%emt 0:02:27]} c5 {[%emt 0:00:30]} 7. dxc5 {[%emt 0:00:31]} Bxc5 {[%emt 0:00:17]} 8. c4 {[%emt 0:00:45]} Nc6 {[%emt 0:04:36]} 9. e3 {[%emt 0:07:25]} b6 {[%emt 0:09:55]} 10. b3 {[%emt 0:06:46]} Bb7 {[%emt 0:02:40]} 11. Bb2 {[%emt 0:00:11]} dxc4 {[%emt 0:15:02]} 12. Nxc4 {[%emt 0:00:08]} Qe7 {[%emt 0:00:36]} 13. Ng5 {[%emt 0:06:27]} e5 {[%emt 0:17:00]} 14. Ne4 {[%emt 0:07:30]} Nxe4 {[%emt 0:01:50]} 15. Bxe4 {[%emt 0:00:07]} Rad8 {[%emt 0:08:26]} 16. Qf3 {[%emt 0:06:53]} f5 {[%emt 0:00:19]} 17. Bd5+ {[%emt 0:06:56]} Kh8 {[%emt 0:02:52]} 18. Bxc6 {[%emt 0:03:13]} e4 {[%emt 0:00:03]} 19. Qf4 {[%emt 0:00:06]} Bxc6 {[%emt 0:00:04]} 20. Rfd1 {[%emt 0:00:08]} Bd5 {[%emt 0:04:48]} 21. Ne5 {[%emt 0:00:59]} Kg8 {[%emt 0:01:06]} 22. h4 {[%emt 0:00:19]} Qe6 {[%emt 0:02:21]} 23. Nc4 {[%emt 0:02:21]} Be7 {[%emt 0:03:06]} (23... Bxc4 $5 24. bxc4 Qf7 $14) 24. Rac1 {[%emt 0:08:17]} h6 {[%emt 0:02:41]} 25. Qc7 {[%emt 0:04:11]} b5 {[%emt 0:06:21]} (25... Rd7 $11 {was preferrable.} 26. Qe5 Qf7) 26. Ne5 {[%emt 0:06:41]} (26. Qe5 $1 $14 Rf6 (26... bxc4 27. Qxg7#) 27. Qxe6+ Rxe6 28. Na3) 26... Bf6 $11 {[%emt 0:07:16]} 27. Rc5 {[%emt 0:00:14] [#]} (27. Rd2 $11 {and White has nothing to worry.} Rc8 28. Qd7 Rxc1+ (28... Bxe5 29. Qxe6+ Bxe6 30. Rxc8 $11) 29. Bxc1) 27... Rfe8 $2 {[%emt 0:03:38]} (27... f4 $1 $19 {[%cal Rf4e3]} 28. exf4 e3 29. fxe3 (29. Rxb5 $2 Be4 $19) 29... Qh3 30. Rdxd5 (30. Rcxd5 Qxg3+ 31. Kh1 Qh3+ 32. Kg1 Rxd5 $19) 30... Qxg3+ 31. Kf1 Qh3+ (31... Qxe3 32. Rxd8 Rxd8 33. Qf7+ Kh8 34. Ng6+ Kh7 35. Nf8+ Rxf8 36. Qxf8 $11) (31... Bxh4 32. Nd3 $11) 32. Ke2 Rxd5 (32... Bxh4 $2 33. Nd3 $18) 33. Rxd5 Qg2+ (33... Qxh4 $2 34. Bd4 $18) 34. Kd3 Qxd5+ 35. Bd4 Bxh4 36. Qxa7 Ra8) 28. Rxb5 {[%emt 0:05:26]} (28. Nc6 $2 Rc8 (28... Bxc6 $2 29. Rxd8 Rxd8 30. Rxc6 $18) 29. Qf4 Bxb2 $19 (29... Rxc6 30. Rxc6 Qxc6 31. Bxf6 $17) (29... Bxc6 30. Rd6 $17)) 28... Bxb3 $2 {[%emt 0:04:21][%mdl 8192]} (28... Bxe5 $6 29. Bxe5 Rd7 (29... Qxe5 $2 30. Qa5 $18) 30. Qc3 $18) (28... f4 $1 $11 29. exf4 (29. gxf4 Bxe5 30. Bxe5 Qg4+ 31. Kh2 Qxh4+ 32. Kg2 Qg4+ 33. Kh2 Qh5+ 34. Kg2 Qf3+ 35. Kh2 Qxf2+ 36. Kh1 Qf3+ 37. Kh2 Qe2+ 38. Kg3 Qxe3+ 39. Kg2 Qf3+ 40. Kh2 Qf2+ 41. Kh1 Qh4+ 42. Kg2 Rxe5 $19) 29... e3 30. fxe3 Qh3 31. Rdxd5 (31. Rbxd5 Qxg3+ 32. Kh1 Qh3+ 33. Kg1 Qg3+ 34. Kh1 Qh3+ 35. Kg1 Qg3+ $11) 31... Qxg3+ 32. Kf1 Qh3+ 33. Kg1 Qg3+ (33... Qxh4 $2 34. Qf7+ Kh7 35. Qg6+ Kh8 36. Nf3 $18) (33... Qxe3+ 34. Kg2 $11) 34. Kf1 Qh3+ 35. Kg1 Qg3+ (35... Qxh4 $2 36. Qf7+ Kh7 37. Qg6+ Kh8 38. Nf3 $18) (35... Qxe3+ 36. Kg2 $11)) 29. Rxd8 $18 {[%emt 0:02:05]} Bxd8 {[%emt 0:00:03]} 30. Qxa7 {[%emt 0:00:35]} Bd1 $2 {[%emt 0:01:56]} (30... Bd5 31. Nc6 Bf6) 31. Nc6 {[%emt 0:02:38]} Bf6 {[%emt 0:00:09]} 32. Bxf6 {[%emt 0:00:33]} Qxf6 {[%emt 0:00:03]} 33. Qd7 {[%emt 0:00:39]} Bh5 {[%emt 0:01:50]} 34. Rxf5 {[%emt 0:02:29]} Qa1+ {[%emt 0:00:10]} 35. Kh2 {[%emt 0:00:04]} Qxa2 {[%emt 0:00:13] [#]} 36. g4 {[%emt 0:06:09]} (36. Rxh5 Qxf2+ 37. Kh3 Qf1+ 38. Kh2 Qe2+ 39. Kh3 Qxh5 40. Ne7+ Kh8 $17) (36. Ne7+ $142 $1 {[%mdl 512]} Rxe7 (36... Kh7 37. Nd5) 37. Qxe7) 36... Bg6 {[%emt 0:00:40]} (36... Qe6 {was necessary.} 37. Qxe6+ Rxe6) 37. h5 {[%emt 0:00:29]} Bxf5 {[%emt 0:00:12]} (37... Qe6 $142 38. Qxe6+ Rxe6) 38. Qxe8+ $18 {[%emt 0:00:04]} Kh7 {[%emt 0:00:04]} 39. Kg3 {[%emt 0:00:37]} ({Inferior is} 39. gxf5 Qxf2+ 40. Kh1 Qf1+ 41. Kh2 Qf2+ 42. Kh3 Qxe3+ 43. Kg2 Qe2+ (43... Qf3+ 44. Kh2 $11) 44. Kg1 Qe3+ 45. Kf1 Qf3+ 46. Kg1 (46. Ke1 Qc3+ 47. Kd1 Qd3+ 48. Ke1 e3 $11) 46... Qd1+ (46... Qxf5 47. Ne5 $11) 47. Kf2 e3+ 48. Qxe3 Qc2+ 49. Kg3 Qxc6 $11) 39... Be6 $2 {[%emt 0:02:19]} (39... Qe6 40. Qxe6 (40. Ne7 Bxg4 41. Qg6+ Kh8 $11) 40... Bxe6) 40. Nd4 $2 {[%emt 0:00:00]} (40. g5 {[%csl Ge8,Gh5][%cal Rg5g6]} Bg8 41. Qxe4+ Kh8 42. gxh6) 40... Bd5 $2 {[%emt 0:00:00]} (40... Bg8 41. Qxe4+ Kh8) 41. Qe5 {[%emt 0:03:13]} Ba8 {[%emt 0:02:37]} (41... Bg8 $18 42. Nf5 (42. Qxe4+ Kh8 $18) 42... Qa7 43. Qxe4 Qc7+ 44. f4 Kh8) 42. Ne6 {[%emt 0:00:45]} Qa7 {[%emt 0:00:20]} 43. Qf5+ {[%emt 0:00:40]} Kg8 {[%emt 0:00:14]} 44. Qf8+ {[%emt 0:00:06]} Kh7 {[%emt 0:00:04]} 45. g5 {[%emt 0:00:19]} hxg5 {[%emt 0:00:54]} 46. Nxg5+ {[%emt 0:00:05]} Kh6 {[%emt 0:00:06]} 47. Kh4 {[%emt 0:00:08]} 1-0